bitfinex-derivatives/quotes_SOLF0:USTF0_20240827
["timestamp","ask_amount","ask_price","bid_price","bid_amount"]
[1724790301076,3.27251543,154.81,154.78,3.23]
[1724790301384,3.27251543,154.81,154.77,0.04657644]
[1724790301884,3.27251543,154.81,154.78,3.23]
[1724790304687,0.04291543,154.81,154.79,9.92]
[1724790305892,0.04291543,154.81,154.8,3.2298]
[1724790319893,0.04291543,154.81,154.8,13.1498]
[1724790328904,0.04291543,154.81,154.8,3.2298]
[1724790329799,0.04291543,154.81,154.8,13.1498]
[1724790337312,2.5406,154.85,154.83,3.229]
[1724790337514,1.286,154.85,154.83,13.149]
[1724790339109,0.04833678,154.86,154.85,3.2287]
[1724790339420,0.04833678,154.86,154.85,13.1487]
[1724790359135,0.04833678,154.86,154.85,3.2287]
[1724790359337,0.04833678,154.86,154.84,3.2289]
[1724790359935,0.04833678,154.86,154.83,9.92]
[1724790359936,0.04833678,154.86,154.85,3.2287]
[1724790360750,0.04833678,154.86,154.85,13.1487]
[1724790363850,0.04833678,154.86,154.82,0.0491458]
[1724790364051,1.34513678,154.86,154.82,0.0491458]
[1724790364353,1.34513678,154.86,154.82,9.9691458]
[1724790364551,1.34513678,154.86,154.84,9.92]
[1724790366047,0.04833678,154.86,154.84,9.92]
[1724790366450,3.27683678,154.86,154.84,9.92]
[1724790370149,3.27683678,154.86,154.83,3.2291]
[1724790371250,3.2287,154.85,154.82,13.1984458]
[1724790371558,0.04833678,154.86,154.82,0.0491458]
[1724790371753,9.96833678,154.86,154.82,0.0491458]
[1724790371950,3.2289,154.85,154.82,0.0491458]
[1724790378062,3.2291,154.83,154.82,0.0491458]
[1724790378665,3.2291,154.83,154.76,71.62716378]
[1724790378666,3.2297,154.81,154.77,17.76443513]
[1724790378962,3.2297,154.81,154.78,3.32222985]
[1724790379655,3.27237321,154.81,154.78,3.36346929]
[1724790379855,3.27237321,154.81,154.78,0.04123944]
[1724790380457,3.27237321,154.81,154.78,3.36426329]
[1724790381161,0.04267321,154.81,154.78,0.04123944]
[1724790383463,3.27237321,154.81,154.78,0.04123944]
[1724790384359,0.04267321,154.81,154.8,9.92]
[1724790385366,0.04267321,154.81,154.8,13.1498]
[1724790387665,0.04267321,154.81,154.8,16.47126146]
[1724790388258,0.04267321,154.81,154.8,13.1498]
[1724790390269,0.04267321,154.81,154.8,3.2298]
[1724790392766,0.04267321,154.81,154.8,16.47147169]
[1724790393363,0.04267321,154.81,154.8,13.1498]
[1724790399377,0.04267321,154.81,154.8,3.2298]
[1724790404371,0.04267321,154.81,154.8,13.1498]
[1724790406469,0.04267321,154.81,154.8,16.47188794]
[1724790407965,0.04267321,154.81,154.8,13.1498]
[1724790409174,0.04267321,154.81,154.8,16.47190517]
[1724790409680,0.04267321,154.81,154.8,13.1498]
[1724790410180,0.04267321,154.81,154.8,17.76373374]
[1724790410378,0.04267321,154.81,154.8,15.73349718]
[1724790410574,0.04267321,154.81,154.8,19.05439117]
[1724790411077,0.04267321,154.81,154.8,17.76254682]
[1724790413184,0.04267321,154.81,154.8,13.1498]
[1724790413370,0.04267321,154.81,154.8,14.44164435]
[1724790413575,0.04267321,154.81,154.8,17.76243618]
[1724790414184,0.04267321,154.81,154.8,7.84243618]
[1724790416588,0.04267321,154.81,154.8,3.2298]
[1724790416983,0.04267321,154.81,154.8,7.84166723]
[1724790419595,0.04267321,154.81,154.8,4.52170289]
[1724790419796,0.04267321,154.81,154.8,7.84037699]
[1724790420197,0.04267321,154.81,154.8,3.2298]
[1724790420495,0.04267321,154.81,154.8,7.84035112]
[1724790420890,0.04267321,154.81,154.8,11.15869313]
[1724790421090,0.04267321,154.81,154.8,7.84003119]
[1724790421595,0.04267321,154.81,154.8,3.31834201]
[1724790422001,0.04267321,154.81,154.79,3.2299]
[1724790422696,0.04267321,154.81,154.78,3.27143944]
[1724790422894,0.04267321,154.81,154.79,4.61138282]
[1724790423096,0.04267321,154.81,154.78,9.96123944]
[1724790423296,0.04267321,154.81,154.79,14.53131232]
[1724790423497,0.04267321,154.81,154.8,3.31931448]
[1724790424201,0.04267321,154.81,154.8,4.61128119]
[1724790424399,0.04267321,154.81,154.8,6.54911448]
[1724790424791,0.04267321,154.81,154.8,7.84107572]
[1724790425810,0.04267321,154.81,154.8,3.2298]
[1724790426001,0.04267321,154.81,154.8,7.84036045]
[1724790426798,0.04267321,154.81,154.8,7.83961052]
[1724790429118,0.04267321,154.81,154.8,4.52176634]
[1724790429403,0.04267321,154.81,154.8,7.83934585]
[1724790432605,0.04267321,154.81,154.8,7.83895886]
[1724790434009,0.04267321,154.81,154.8,2.60975886]
[1724790434502,3.23,154.79,154.78,0.04123944]
[1724790434704,13.15,154.79,154.78,0.04123944]
[1724790435408,3.23,154.79,154.78,0.04123944]
[1724790435609,4.5432,154.8,154.78,0.04123944]
[1724790436304,1.3134,154.8,154.78,0.04123944]
[1724790439708,4.5432,154.8,154.78,0.04123944]
[1724790442211,1.3134,154.8,154.78,0.04123944]
[1724790442416,1.3134,154.8,154.78,3.27133944]
[1724790442915,0.04267321,154.81,154.78,9.96123944]
[1724790443111,0.04267321,154.81,154.79,9.92]
[1724790444107,0.04267321,154.81,154.8,3.2298]
[1724790446311,0.04267321,154.81,154.8,4.52187242]
[1724790447717,0.04267321,154.81,154.8,3.2298]
[1724790448808,0.04267321,154.81,154.8,6.54423003]
[1724790449713,0.04267321,154.81,154.8,3.2298]
[1724790450920,0.04267321,154.81,154.8,6.54427168]
[1724790451218,0.04267321,154.81,154.8,6.54427421]
[1724790451810,0.04267321,154.81,154.8,3.2298]
[1724790452211,0.04267321,154.81,154.8,6.54431167]
[1724790453523,0.04267321,154.81,154.8,3.31451167]
[1724790453817,0.04267321,154.81,154.79,3.2299]
[1724790456718,0.04267321,154.81,154.78,0.04123944]
[1724790457021,0.04267321,154.81,154.79,3.31458889]
[1724790457216,0.04267321,154.81,154.78,0.04123944]
[1724790457423,0.04267321,154.81,154.79,3.31456423]
[1724790457610,0.04267321,154.81,154.78,0.04123944]
[1724790457816,0.04267321,154.81,154.79,3.31469343]
[1724790458018,0.04267321,154.81,154.78,0.04123944]
[1724790458218,0.04267321,154.81,154.79,3.31469553]
[1724790458513,0.04267321,154.81,154.79,3.23]
[1724790458925,9.96267321,154.81,154.78,0.04123944]
[1724790460328,3.2299,154.8,154.78,0.04123944]
[1724790470946,3.23,154.79,154.78,0.04123944]
[1724790481057,4.5129,154.79,154.78,0.04123944]
[1724790483355,3.23,154.79,154.78,0.04123944]
[1724790483958,0.04267321,154.81,154.78,3.27143944]
[1724790484161,0.04267321,154.81,154.78,0.04123944]
[1724790484355,3.2299,154.8,154.78,0.04123944]
[1724790490066,3.2298,154.8,154.78,0.04123944]
[1724790491562,9.92,154.79,154.78,0.04123944]
[1724790491960,13.15,154.79,154.78,0.04123944]
[1724790494077,3.2303,154.78,154.73,4.61071158]
[1724790494367,3.2303,154.78,154.74,1.2923952]
[1724790494368,9.92,154.76,154.74,1.2923952]
[1724790494572,9.92,154.76,154.74,3.31932593]
[1724790494766,9.92,154.76,154.72,1.223]
[1724790494971,9.96702393,154.76,154.73,1.29236115]
[1724790495267,9.96702393,154.76,154.75,3.2307]
[1724790495472,9.96702393,154.76,154.75,7.84215745]
[1724790496373,9.96702393,154.76,154.75,4.52306115]
[1724790496374,0.04702393,154.76,154.75,4.52306115]
[1724790496574,0.04702393,154.76,154.75,7.84201442]
[1724790497666,0.04702393,154.76,154.75,4.52306115]
[1724790497869,0.04702393,154.76,154.75,7.84159705]
[1724790499075,0.04702393,154.76,154.75,4.61089705]
[1724790501673,0.04702393,154.76,154.74,3.231]
[1724790502167,0.04702393,154.76,154.75,4.61137393]
[1724790504167,0.04702393,154.76,154.74,3.231]
[1724790504373,0.04702393,154.76,154.75,3.3192983]
[1724790504567,0.04702393,154.76,154.74,3.231]
[1724790504763,0.04702393,154.76,154.75,3.31930047]
[1724790509078,0.04702393,154.76,154.75,3.31970954]
[1724790509680,0.04702393,154.76,154.75,6.55050954]
[1724790510380,2.5882,154.83,154.79,3.2299]
[1724790510583,9.92,154.82,154.79,3.2299]
[1724790510885,13.1493,154.82,154.79,3.2299]
[1724790511184,3.2293,154.82,154.79,3.2299]
[1724790511476,13.19777735,154.82,154.79,3.27499885]
[1724790514879,9.96847735,154.82,154.79,3.27499885]
[1724790515078,9.96847735,154.82,154.8,3.2297]
[1724790515668,9.96847735,154.82,154.79,3.27499885]
[1724790517976,13.19787735,154.82,154.79,3.27499885]
[1724790520077,3.27787735,154.82,154.79,3.27499885]
[1724790520283,13.19787735,154.82,154.8,3.2298]
[1724790521988,9.96847735,154.82,154.81,3.2296]
[1724790524081,0.04847735,154.82,154.81,3.2296]
[1724790528081,0.04847735,154.82,154.81,6.54844834]
[1724790528277,0.04847735,154.82,154.81,3.2296]
[1724790539796,0.04847735,154.82,154.8,3.2297]
[1724790541288,0.04847735,154.82,154.81,3.2296]
[1724790546299,0.04847735,154.82,154.81,13.1496]
[1724790546596,104.06130787,155.03,154.81,13.1496]
[1724790546597,9.92,154.89,154.84,3.2288]
[1724790546991,56.3789004,154.9,154.86,3.2284]
[1724790547195,66.2989004,154.9,154.86,3.2284]
[1724790547403,3.228,154.89,154.86,3.2284]
[1724790547599,3.27650274,154.89,154.86,3.27723238]
[1724790549700,3.27650274,154.89,154.86,0.04883238]
[1724790549905,3.2281,154.88,154.86,0.04883238]
[1724790555518,3.27640274,154.89,154.86,3.27733238]
[1724790558414,3.2281,154.88,154.86,3.27733238]
[1724790562122,3.2281,154.88,154.86,0.04883238]
[1724790569425,1.0,154.9,154.86,9.96883238]
[1724790569619,1.0,154.9,154.89,9.92]
[1724790569815,1.0,154.9,154.89,13.11793348]
[1724790570317,1.0,154.9,154.89,13.1479]
[1724790570522,1.0,154.9,154.89,7.1479]
[1724790571329,1.0,154.9,154.89,3.2279]
[1724790575524,1.0,154.9,154.89,13.1479]
[1724790578830,0.0415653,154.91,154.9,3.2277]
[1724790579037,0.0415653,154.91,154.9,13.1477]
[1724790583826,0.0415653,154.91,154.9,3.2277]
[1724790584131,0.0415653,154.91,154.9,13.1477]
[1724790589045,0.0415653,154.91,154.9,3.2277]
[1724790589335,0.0415653,154.91,154.9,13.1477]
[1724790600835,0.0415653,154.91,154.89,3.2278]
[1724790601035,0.0415653,154.91,154.86,9.96883238]
[1724790601235,3.2690653,154.91,154.86,9.96883238]
[1724790601441,4.5227653,154.91,154.88,3.2281]
[1724790602042,4.5227653,154.91,154.87,3.2282]
[1724790602242,3.2277,154.9,154.86,0.04883238]
[1724790602447,3.2277,154.9,154.86,3.27723238]
[1724790602648,3.92,154.89,154.86,3.27723238]
[1724790602848,7.1479,154.89,154.86,0.04883238]
[1724790603048,9.92,154.88,154.8,79.54783018]
[1724790603246,9.92,154.88,154.8,89.46783018]
[1724790603547,3.2283,154.87,154.8,89.46783018]
[1724790603948,3.2283,154.87,154.82,3.2293]
[1724790604156,3.2283,154.87,154.8,79.54783018]
[1724790604157,13.18944576,154.86,154.83,0.04190317]
[1724790604357,9.96084576,154.86,154.83,0.04190317]
[1724790604653,11.141,154.85,154.8,3.2297]
[1724790604845,9.92,154.83,154.77,9.92]
[1724790605442,13.1492,154.83,154.73,81.61253007]
[1724790605649,0.04355899,154.8,154.77,9.92]
[1724790606055,0.04355899,154.8,154.79,3.23]
[1724790609562,0.04355899,154.8,154.78,3.2301]
[1724790609874,0.04355899,154.8,154.78,13.1501]
[1724790610166,0.04355899,154.8,154.79,9.92]
[1724790611367,0.04355899,154.8,154.79,13.15]
[1724790616972,0.04355899,154.8,154.76,0.0432409]
[1724790617175,0.04355899,154.8,154.78,3.2302]
[1724790617370,0.04355899,154.8,154.76,9.9632409]
[1724790617671,13.19345899,154.8,154.76,0.0432409]
[1724790617868,13.19345899,154.8,154.71,3.92]
[1724790617869,11.169,154.79,154.71,80.99827437]
[1724790618065,9.92,154.76,154.71,77.07827437]
[1724790618274,9.92,154.74,154.71,77.07827437]
[1724790618775,9.92,154.73,154.71,77.07827437]
[1724790621079,3.96541851,154.74,154.71,77.07827437]
[1724790623377,7.19651851,154.74,154.71,77.07827437]
[1724790623568,9.92,154.73,154.71,77.07827437]
[1724790623775,15.1684,154.73,154.7,1.04522991]
[1724790626181,15.1684,154.73,154.7,4.27702991]
[1724790628883,11.2484,154.73,154.7,4.27702991]
[1724790629086,15.1684,154.73,154.7,4.27702991]
[1724790631382,1.3284,154.73,154.71,3.2316]
[1724790638385,11.2484,154.73,154.7,4.27702991]
[1724790641290,1.3284,154.73,154.71,3.2315]
[1724790641487,1.3284,154.73,154.7,1.04522991]
[1724790641488,3.96541851,154.74,154.7,10.96522991]
[1724790641688,0.04541851,154.74,154.7,10.96522991]
[1724790641891,0.04541851,154.74,154.72,3.2312]
[1724790645095,0.04541851,154.74,154.73,3.2312]
[1724790650294,9.96541851,154.74,154.72,3.2313]
[1724790652302,13.19641851,154.74,154.72,3.2313]
[1724790652598,9.92,154.73,154.71,3.2316]
[1724790653987,3.92,154.73,154.72,3.2314]
[1724790654801,9.96541851,154.74,154.72,3.2314]
[1724790654994,13.88541851,154.74,154.72,3.2314]
[1724790656894,9.96541851,154.74,154.7,1.04522991]
[1724790657090,13.88541851,154.74,154.7,1.04522991]
[1724790657595,17.11641851,154.74,154.72,3.2314]
[1724790659096,13.1513,154.73,154.7,1.04522991]
[1724790659293,9.92,154.71,154.7,1.04522991]
[1724790659499,9.92,154.71,154.7,4.27692991]
[1724790663106,9.92,154.72,154.7,4.27692991]
[1724790669007,13.1515,154.72,154.7,1.04522991]
[1724790674621,17.0715,154.72,154.7,1.04522991]
[1724790676927,3.2316,154.71,154.7,1.04522991]
[1724790677317,13.1516,154.71,154.7,1.04522991]
[1724790678722,9.92,154.71,154.63,73.8107058]
[1724790678924,9.92,154.69,154.63,73.8107058]
[1724790679530,3.2323,154.68,154.66,3.2327]
[1724790679722,9.96829977,154.69,154.66,3.2327]
[1724790680224,3.28049977,154.69,154.66,3.2327]
[1724790681225,3.28049977,154.69,154.67,3.2325]
[1724790687340,0.04829977,154.69,154.65,9.96296596]
[1724790687539,0.04829977,154.69,154.68,3.2323]
[1724790688038,0.04829977,154.69,154.68,13.1523]
[1724790690837,13.1509,154.75,154.71,3.2315]
[1724790691035,17.0709,154.75,154.71,3.2315]
[1724790691242,13.1509,154.75,154.71,3.2315]
[1724790692044,0.04239159,154.75,154.71,0.04710365]
[1724790692640,0.04239159,154.75,154.73,3.2311]
[1724790693745,0.04239159,154.75,154.74,3.231]
[1724790700242,0.04239159,154.75,154.74,13.151]
[1724790709848,0.04239159,154.75,154.74,3.231]
[1724790710648,0.04239159,154.75,154.74,13.151]
[1724790719164,0.04239159,154.75,154.74,3.231]
[1724790719360,0.04239159,154.75,154.74,13.151]
[1724790721167,0.04239159,154.75,154.74,3.231]
[1724790721360,0.04239159,154.75,154.74,13.151]
[1724790721557,0.04239159,154.75,154.74,3.231]
[1724790721856,0.04239159,154.75,154.74,13.151]
[1724790728573,0.04239159,154.75,154.74,3.231]
[1724790730465,0.04239159,154.75,154.74,13.151]
[1724790742574,0.04239159,154.75,154.74,3.231]
[1724790743570,0.04239159,154.75,154.71,0.04710365]
[1724790743778,0.04239159,154.75,154.72,3.2313]
[1724790745374,0.04239159,154.75,154.72,13.1513]
[1724790746579,9.92,154.73,154.67,3.92]
[1724790746770,9.92,154.69,154.67,1.9181]
[1724790746974,9.92,154.69,154.62,3.24857844]
[1724790747176,9.92,154.67,154.61,3.2336]
[1724790747580,9.92,154.67,154.6,9.92]
[1724790747581,0.04355906,154.66,154.62,3.28198531]
[1724790748480,0.04355906,154.66,154.62,13.20198531]
[1724790750270,0.04355906,154.66,154.65,9.92]
[1724790751278,0.04355906,154.66,154.65,13.1529]
[1724790755781,0.04355906,154.66,154.65,9.92]
[1724790757984,0.04355906,154.66,154.64,3.233]
[1724790758183,0.04355906,154.66,154.63,9.92]
[1724790758380,0.04355906,154.66,154.62,0.04848531]
[1724790758381,0.04355906,154.66,154.62,9.96848531]
[1724790758889,0.04355906,154.66,154.62,13.20178531]
[1724790760087,0.04355906,154.66,154.63,3.2333]
[1724790762793,0.04355906,154.66,154.65,9.92]
[1724790763490,0.04355906,154.66,154.65,13.1529]
[1724790766489,0.04355906,154.66,154.65,3.2329]
[1724790773903,0.04355906,154.66,154.65,13.1529]
[1724790792118,3.2315,154.72,154.68,13.1521]
[1724790793011,3.27309112,154.72,154.68,13.19746575]
[1724790793919,3.27309112,154.72,154.69,3.232]
[1724790795420,0.04159112,154.72,154.7,3.2318]
[1724790797118,564.20901348,154.88,154.71,9.92]
[1724790797318,2.5028,154.85,154.78,9.92]
[1724790797523,6.4228,154.85,154.8,9.92]
[1724790797914,5.7317,154.85,154.81,3.2294]
[1724790798115,6.46622635,154.85,154.81,0.0439916]
[1724790798314,9.92,154.84,154.81,0.0439916]
[1724790798624,9.92,154.83,154.81,0.0439916]
[1724790798814,9.92,154.82,154.75,9.92]
[1724790799016,3.2298,154.81,154.74,77.97843647]
[1724790799722,3.2298,154.81,154.77,3.2304]
[1724790800025,3.27155454,154.81,154.77,3.2756368]
[1724790800517,3.2298,154.8,154.77,0.0452368]
[1724790800712,13.1498,154.8,154.77,0.0452368]
[1724790800918,1.2553,154.79,154.77,0.0452368]
[1724790803414,1.2553,154.79,154.77,3.2756368]
[1724790804722,1.2553,154.79,154.78,3.2302]
[1724790807819,0.04175454,154.81,154.77,9.9652368]
[1724790808618,0.04175454,154.81,154.8,3.2298]
[1724790808926,0.04175454,154.81,154.8,13.1498]
[1724790816626,4.4878,154.88,154.84,3.2288]
[1724790816837,8.4078,154.88,154.84,3.2288]
[1724790817027,9.92,154.87,154.78,3.19873368]
[1724790817224,9.92,154.87,154.8,9.92]
[1724790817625,0.04672497,154.85,154.82,0.04912665]
[1724790818130,0.04672497,154.85,154.82,3.27832665]
[1724790818831,0.04672497,154.85,154.83,3.2291]
[1724790824342,9.92,154.84,154.82,0.04912665]
[1724790824548,13.86,154.83,154.82,0.04912665]
[1724790825048,17.0891,154.83,154.82,0.04912665]
[1724790827145,7.1691,154.83,154.82,0.04912665]
[1724790828562,3.2299,154.8,154.76,1.302]
[1724790828737,3.2299,154.8,154.75,9.92]
[1724790828941,9.92,154.78,154.74,3.231]
[1724790829444,9.92,154.78,154.74,3.27210819]
[1724790829645,9.96158519,154.78,154.74,3.27210819]
[1724790829845,13.19178519,154.78,154.74,3.27210819]
[1724790834450,3.2304,154.77,154.74,3.27210819]
[1724790834752,3.2304,154.77,154.74,0.04110819]
[1724790838558,3.2307,154.76,154.74,0.04110819]
[1724790838948,9.92,154.76,154.74,0.04110819]
[1724790839650,3.2308,154.75,154.74,0.04110819]
[1724790840557,13.1507,154.76,154.74,0.04110819]
[1724790841552,3.2307,154.76,154.74,3.27210819]
[1724790841751,3.2307,154.76,154.74,0.04110819]
[1724790851464,13.1508,154.75,154.74,0.04110819]
[1724790852467,9.92,154.75,154.69,3.2319]
[1724790852665,9.92,154.71,154.69,3.2319]
[1724790853461,13.1517,154.71,154.68,3.2784332]
[1724790856471,3.232,154.7,154.68,0.0462332]
[1724790857170,13.1516,154.71,154.68,3.2784332]
[1724790875586,13.1516,154.71,154.68,3.2784332]
[1724790876683,0.04767164,154.72,154.68,3.2784332]
[1724790876684,3.27917164,154.72,154.68,0.0462332]
[1724790876885,0.04767164,154.72,154.68,0.0462332]
[1724790877781,3.27907164,154.72,154.69,3.232]
[1724790879285,13.19907164,154.72,154.69,3.232]
[1724790880382,3.27907164,154.72,154.69,3.232]
[1724790884479,0.04767164,154.72,154.69,3.232]
[1724790886386,3.27927164,154.72,154.69,3.232]
[1724790897098,13.1518,154.71,154.68,3.2784332]
[1724790899495,9.92,154.7,154.68,3.2784332]
[1724790902291,13.1519,154.7,154.68,3.2784332]
[1724790902691,0.04767164,154.72,154.68,3.2784332]
[1724790902890,13.1518,154.71,154.68,3.2784332]
[1724790904199,3.2318,154.71,154.69,3.232]
[1724790908100,0.04767164,154.72,154.68,0.0462332]
[1724790908297,0.04767164,154.72,154.68,9.9662332]
[1724790908800,0.04767164,154.72,154.7,3.2317]
[1724790909500,0.04767164,154.72,154.71,3.2316]
[1724790915304,0.04767164,154.72,154.71,13.1516]
[1724790915501,3.92,154.77,154.74,3.2309]
[1724790915701,7.1505,154.77,154.74,3.2309]
[1724790916609,7.19803841,154.77,154.74,3.27474296]
[1724790917012,13.1507,154.76,154.74,0.04384296]
[1724790917515,9.92,154.75,154.74,0.04384296]
[1724790918315,13.1508,154.75,154.74,0.04384296]
[1724790927224,3.2314,154.73,154.7,3.2317]
[1724790927419,9.92,154.71,154.7,3.2317]
[1724790928327,9.92,154.71,154.69,3.27514864]
[1724790929331,9.92,154.7,154.69,0.04314864]
[1724790930430,13.1519,154.7,154.69,0.04314864]
[1724790935427,3.2325,154.67,154.62,77.13505093]
[1724790935627,13.1525,154.67,154.62,77.13505093]
[1724790936421,13.1525,154.67,154.64,3.2331]
[1724790936625,0.04846536,154.66,154.64,3.2331]
[1724790939527,3.28116536,154.66,154.63,3.27754394]
[1724790939729,9.92,154.65,154.63,0.04434394]
[1724790940235,3.28126536,154.66,154.63,3.27754394]
[1724790945229,0.04846536,154.66,154.63,3.27754394]
[1724790946034,0.04846536,154.66,154.64,3.233]
[1724790952735,9.96846536,154.66,154.63,0.04434394]
[1724790953540,3.2329,154.65,154.63,0.04434394]
[1724790958837,3.2329,154.65,154.63,3.27764394]
[1724790959542,13.20116536,154.66,154.63,3.27764394]
[1724790961349,0.04846536,154.66,154.64,3.2331]
[1724790963562,0.04846536,154.66,154.65,3.2329]
[1724790973660,9.96846536,154.66,154.63,0.04434394]
[1724790973856,9.92,154.65,154.63,0.04434394]
[1724790974055,9.92,154.65,154.63,3.27764394]
[1724790975563,13.1529,154.65,154.63,0.04434394]
[1724791000161,7.20116536,154.66,154.63,3.27744394]
[1724791000365,3.96846536,154.66,154.63,0.04434394]
[1724791000970,3.96846536,154.66,154.64,3.2331]
[1724791001777,0.04846536,154.66,154.64,3.2331]
[1724791003083,9.92,154.65,154.63,3.27764394]
[1724791003271,0.04846536,154.66,154.63,0.04434394]
[1724791003272,9.92,154.64,154.63,0.04434394]
[1724791004390,13.1531,154.64,154.63,0.04434394]
[1724791004881,9.92,154.65,154.63,3.27764394]
[1724791005978,3.28136536,154.66,154.63,0.04434394]
[1724791005979,0.04846536,154.66,154.63,0.04434394]
[1724791006177,9.96846536,154.66,154.64,3.233]
[1724791007080,13.20116536,154.66,154.64,3.233]
[1724791008880,13.20116536,154.66,154.63,3.27754394]
[1724791009690,9.92,154.65,154.63,3.27754394]
[1724791013289,13.1529,154.65,154.63,3.27754394]
[1724791014991,3.28126536,154.66,154.63,3.27754394]
[1724791015296,0.04846536,154.66,154.64,3.233]
[1724791015592,3.92,154.7,154.67,3.2323]
[1724791015792,13.84,154.72,154.66,9.92]
[1724791016291,17.0716,154.72,154.68,3.2322]
[1724791016687,17.0716,154.72,154.68,3.27605223]
[1724791016688,13.88259708,154.72,154.68,3.27605223]
[1724791016990,3.2317,154.71,154.68,3.27605223]
[1724791017991,13.1519,154.7,154.68,0.04385223]
[1724791026101,3.2319,154.7,154.68,0.04385223]
[1724791026604,3.2318,154.71,154.68,3.27605223]
[1724791030691,3.27409708,154.72,154.69,3.232]
[1724791034211,0.04259708,154.72,154.7,3.2318]
[1724791036109,0.04259708,154.72,154.71,3.2316]
[1724791051115,0.04259708,154.72,154.71,13.1516]
[1724791059430,0.04259708,154.72,154.7,13.1518]
[1724791065137,0.04259708,154.72,154.7,3.2318]
[1724791065330,3.27409708,154.72,154.7,3.2318]
[1724791066234,9.96259708,154.72,154.68,0.04385223]
[1724791066633,9.92,154.7,154.68,0.04385223]
[1724791067537,3.2321,154.69,154.68,0.04385223]
[1724791078258,3.2319,154.7,154.68,0.04385223]
[1724791079048,3.2321,154.69,154.68,0.04385223]
[1724791086963,0.04259708,154.72,154.68,0.04385223]
[1724791086964,0.04259708,154.72,154.69,3.232]
[1724791087962,0.04259708,154.72,154.68,3.27605223]
[1724791088164,9.96259708,154.72,154.68,0.04385223]
[1724791088666,3.2317,154.71,154.68,0.04385223]
[1724791089566,3.232,154.7,154.68,0.04385223]
[1724791090664,13.1521,154.69,154.68,0.04385223]
[1724791091062,9.92,154.69,154.62,1.3242]
[1724791091364,9.92,154.66,154.59,3.9]
[1724791091563,9.92,154.66,154.58,9.92]
[1724791091768,3.233,154.65,154.61,3.2336]
[1724791092068,9.92,154.64,154.61,0.04589963]
[1724791094162,3.2335,154.63,154.61,0.04589963]
[1724791094770,13.1532,154.64,154.61,0.04589963]
[1724791102969,13.1534,154.63,154.61,0.04589963]
[1724791111193,9.92,154.63,154.61,3.27959963]
[1724791112881,13.1533,154.63,154.61,3.27959963]
[1724791113589,3.2332,154.64,154.61,3.27959963]
[1724791113981,13.1532,154.64,154.61,3.27959963]
[1724791116491,3.2332,154.64,154.61,3.27959963]
[1724791116789,13.1532,154.64,154.61,3.27959963]
[1724791126990,9.92,154.62,154.61,0.04589963]
[1724791132896,13.1535,154.62,154.61,0.04589963]
[1724791133905,3.2335,154.62,154.61,0.04589963]
[1724791134100,13.1535,154.62,154.61,0.04589963]
[1724791141699,3.2332,154.64,154.61,0.04589963]
[1724791141902,3.9,154.64,154.61,0.04589963]
[1724791142502,9.92,154.63,154.61,0.04589963]
[1724791142702,9.92,154.62,154.61,0.04589963]
[1724791144405,13.1535,154.62,154.61,0.04589963]
[1724791162823,3.9,154.64,154.61,0.04589963]
[1724791163028,13.82,154.64,154.61,0.04589963]
[1724791163522,3.9,154.64,154.61,0.04589963]
[1724791163820,9.92,154.64,154.61,0.04589963]
[1724791164422,9.92,154.64,154.62,3.2334]
[1724791171333,9.92,154.63,154.61,0.04589963]
[1724791172031,13.1533,154.63,154.61,0.04589963]
[1724791172228,9.92,154.63,154.61,0.04589963]
[1724791174332,9.92,154.63,154.61,3.27959963]
[1724791175941,7.17407976,154.65,154.62,3.2334]
[1724791176134,9.92,154.64,154.61,0.04589963]
[1724791177332,13.1531,154.64,154.61,3.27959963]
[1724791178435,3.94107976,154.65,154.61,0.04589963]
[1724791178739,0.04107976,154.65,154.61,0.04589963]
[1724791179738,0.04107976,154.65,154.62,3.2334]
[1724791182936,3.27417976,154.65,154.61,3.27959963]
[1724791183338,9.92,154.64,154.61,3.27959963]
[1724791186546,3.27417976,154.65,154.62,3.2335]
[1724791186946,3.2332,154.64,154.61,0.04589963]
[1724791188344,3.2332,154.64,154.61,3.27959963]
[1724791196558,3.2332,154.64,154.61,0.04589963]
[1724791197247,9.92,154.63,154.61,0.04589963]
[1724791197850,3.2335,154.62,154.61,0.04589963]